[Event "55th Biel Festival MTO 2022"]
[Site "Biel"]
[Date "2022.07.15"]
[Round "1.1"]
[White "Kolbus Dietmar"]
[Black "Yu Yangyi"]
[Result "0-1"]
[ECO "E15"]
[WhiteElo "2285"]
[BlackElo "2720"]
[Annotator "ChessBase"]
[PlyCount "68"]
[EventDate "2022.07.13"]
[EventType "swiss"]
[EventCountry "SUI"]
[SourceTitle "playchess.com"]
[Source "ChessBase"]
[SourceQuality "1"]
[TimeControl "40/5400+30:1800+30"]

1. d4 {[%emt 0:00:07]} Nf6 {[%emt 0:00:12]} 2. c4 {[%emt 0:00:05]} e6 {[%emt 0:00:08]} 3. Nf3 {[%emt 0:00:19]} b6 {[%emt 0:02:40]} 4. g3 {[%emt 0:00:17]} Ba6 {[%emt 0:00:08]} 5. Qa4 {[%emt 0:02:44]} Bb7 {[%emt 0:07:35]} 6. Bg2 {[%emt 0:00:10]} c5 {[%emt 0:00:15]} 7. O-O {[%emt 0:00:48]} cxd4 {[%emt 0:06:28]} 8. Nxd4 {[%emt 0:03:23]} Bxg2 {[%emt 0:00:11]} 9. Kxg2 {[%emt 0:00:05]} Be7 {[%emt 0:02:07]} 10. Nc3 {[%emt 0:04:09]} O-O {[%emt 0:00:13]} 11. Bg5 {[%emt 0:03:29]} Qc7 {[%emt 0:02:14]} 12. Rac1 {[%emt 0:10:34]} Rc8 {[%emt 0:03:03]} 13. Nf3 {[%emt 0:30:14]} h6 {[%emt 0:09:07]} 14. Bxf6 {[%emt 0:00:30]} Bxf6 {[%emt 0:00:30]} 15. Nd2 {[%emt 0:00:30]} Nc6 {[%emt 0:00:30]} 16. Kg1 {[%emt 0:00:30]} a6 {[%emt 0:12:52]} 17. Qd1 {[%emt 0:00:48]} Ne5 {[%emt 0:04:38]} 18. b3 {[%emt 0:02:33]} b5 {[%emt 0:00:12]} 19. cxb5 {[%emt 0:16:45]} axb5 {[%emt 0:00:09]} 20. a4 {[%emt 0:06:59]} bxa4 {[%emt 0:00:43]} 21. Nxa4 {[%emt 0:00:28]} Qb7 {[%emt 0:01:52]} 22. Rxc8+ {[%emt 0:02:40]} Rxc8 {[%emt 0:00:51]} 23. Qb1 {[%emt 0:00:20]} Qb5 {[%emt 0:00:37]} 24. Re1 {[%emt 0:00:19]} d5 {[%emt 0:00:29]} 25. Kg2 {[%emt 0:02:09]} h5 {[%emt 0:01:07]} 26. Nf3 {[%emt 0:01:21]} Nxf3 {[%emt 0:02:36]} 27. Kxf3 {[%emt 0:00:13]} Rb8 {[%emt 0:03:09]} 28. Rd1 {[%emt 0:03:18]} d4 {[%emt 0:01:13]} 29. e4 {[%emt 0:02:41]} dxe3 {[%emt 0:05:22]} 30. Kxe3 {[%emt 0:00:55]} Qc6 {[%emt 0:02:06]} 31. h4 {[%emt 0:01:35]} Rb5 {[%emt 0:01:13]} 32. Rd3 {[%emt 0:03:37]} Qg2 {[%emt 0:02:09]} 33. Ke2 {[%emt 0:00:17]} Qe4+ {[%emt 0:00:29]} 34. Kd2 {[%emt 0:00:21]} Qxa4 {[%emt 0:00:19]} 0-1

[Event "55th Biel Festival MTO 2022"]
[Site "Biel"]
[Date "2022.07.15"]
[Round "1.2"]
[White "Alekseenko Kirill"]
[Black "Bewersdorff Oliver"]
[Result "1-0"]
[ECO "C85"]
[WhiteElo "2708"]
[BlackElo "2280"]
[Annotator "ChessBase"]
[PlyCount "71"]
[EventDate "2022.07.13"]
[EventType "swiss"]
[EventCountry "SUI"]
[SourceTitle "playchess.com"]
[Source "ChessBase"]
[SourceQuality "1"]
[TimeControl "40/5400+30:1800+30"]

1. e4 {[%emt 0:00:09]} e5 {[%emt 0:00:06]} 2. Nf3 {[%emt 0:00:34]} Nc6 {[%emt 0:00:30]} 3. Bb5 {[%emt 0:00:26]} a6 {[%emt 0:00:11]} 4. Ba4 {[%emt 0:00:40]} Nf6 {[%emt 0:00:07]} 5. O-O {[%emt 0:00:54]} Be7 {[%emt 0:00:10]} 6. Bxc6 {[%emt 0:01:22]} dxc6 {[%emt 0:00:08]} 7. d3 {[%emt 0:00:05]} Nd7 {[%emt 0:01:04]} 8. b3 {[%emt 0:00:35]} O-O {[%emt 0:02:55]} 9. Bb2 {[%emt 0:00:55]} f6 {[%emt 0:10:59]} 10. Nbd2 {[%emt 0:00:07]} c5 {[%emt 0:03:36]} 11. Nh4 {[%emt 0:04:29]} Nb8 {[%emt 0:06:47]} 12. Nf5 {[%emt 0:04:21]} Nc6 {[%emt 0:02:21]} 13. Qg4 {[%emt 0:12:16]} Bxf5 {[%emt 0:04:55]} 14. exf5 {[%emt 0:00:47]} Qd7 {[%emt 0:03:37]} 15. Rae1 {[%emt 0:15:39]} Bd6 {[%emt 0:15:28]} 16. Ne4 {[%emt 0:00:30]} Ne7 {[%emt 0:00:30]} 17. Ng3 {[%emt 0:00:30]} Kh8 {[%emt 0:00:30]} 18. Qf3 {[%emt 0:00:30]} c6 {[%emt 0:00:30]} 19. Re4 {[%emt 0:00:30]} Nd5 {[%emt 0:03:21]} 20. Rh4 {[%emt 0:02:35]} Qf7 {[%emt 0:03:32]} 21. Bc1 {[%emt 0:03:23]} Rad8 {[%emt 0:01:53]} 22. Ne4 {[%emt 0:01:52]} Be7 {[%emt 0:00:58]} 23. Re1 {[%emt 0:11:30]} Nb4 {[%emt 0:02:03]} 24. Qh3 {[%emt 0:03:01]} Qg8 {[%emt 0:02:57]} 25. Re3 {[%emt 0:04:36]} Nxc2 {[%emt 0:05:18]} 26. Rg3 {[%emt 0:00:35]} Nb4 {[%emt 0:00:35]} 27. Bd2 {[%emt 0:03:08]} Nd5 {[%emt 0:02:10]} 28. Qg4 {[%emt 0:02:37]} Nf4 {[%emt 0:12:19]} 29. Bxf4 {[%emt 0:02:52]} exf4 {[%emt 0:00:07]} 30. Qxf4 {[%emt 0:00:51]} Rf7 {[%emt 0:01:53]} 31. Qc7 {[%emt 0:03:55]} Qe8 {[%emt 0:04:02]} 32. Rgh3 {[%emt 0:04:01]} h6 {[%emt 0:00:07]} 33. Rxh6+ {[%emt 0:01:12]} gxh6 {[%emt 0:00:14]} 34. Rxh6+ {[%emt 0:00:12]} Kg8 {[%emt 0:01:10]} 35. Qg3+ {[%emt 0:00:28]} Rg7 {[%emt 0:00:12]} 36. Qh4 {[%emt 0:01:06]} 1-0

[Event "55th Biel Festival MTO 2022"]
[Site "Biel"]
[Date "2022.07.15"]
[Round "1.3"]
[White "Schwander Lukas"]
[Black "Fedoseev Vladimir"]
[Result "0-1"]
[ECO "A35"]
[WhiteElo "2274"]
[BlackElo "2686"]
[Annotator "ChessBase"]
[PlyCount "56"]
[EventDate "2022.07.13"]
[EventType "swiss"]
[EventCountry "SUI"]
[SourceTitle "playchess.com"]
[Source "ChessBase"]
[SourceQuality "1"]
[TimeControl "40/5400+30:1800+30"]

1. Nf3 {[%emt 0:00:04]} c5 {[%emt 0:00:34]} 2. c4 {[%emt 0:00:04]} Nc6 {[%emt 0:00:26]} 3. Nc3 {[%emt 0:01:47]} g6 {[%emt 0:00:47]} 4. e3 {[%emt 0:00:11]} Bg7 {[%emt 0:05:13]} 5. d4 {[%emt 0:00:34]} d6 {[%emt 0:00:11]} 6. d5 {[%emt 0:02:07]} Na5 {[%emt 0:06:54]} 7. Bd2 {[%emt 0:00:08]} a6 {[%emt 0:00:23]} 8. a3 {[%emt 0:00:27]} Bd7 {[%emt 0:03:59]} 9. b4 {[%emt 0:20:57]} cxb4 {[%emt 0:00:10]} 10. axb4 {[%emt 0:00:05]} Nxc4 {[%emt 0:00:16]} 11. Bxc4 {[%emt 0:00:04]} Rc8 {[%emt 0:00:17]} 12. Qb3 {[%emt 0:03:46]} Qc7 {[%emt 0:00:17]} 13. Bxa6 {[%emt 0:02:01]} bxa6 {[%emt 0:00:13]} 14. O-O {[%emt 0:08:06]} Qb7 {[%emt 0:04:37]} 15. Ra5 {[%emt 0:16:12]} Nf6 {[%emt 0:00:24]} 16. Rfa1 {[%emt 0:12:24]} Bb5 {[%emt 0:04:59]} 17. Nxb5 {[%emt 0:00:30]} axb5 {[%emt 0:00:30]} 18. Nd4 {[%emt 0:00:30]} Qxd5 {[%emt 0:00:30]} 19. Qxd5 {[%emt 0:00:30]} Nxd5 {[%emt 0:00:30]} 20. Rxb5 {[%emt 0:14:58]} e5 {[%emt 0:00:18]} 21. Rb7 {[%emt 0:11:40]} O-O {[%emt 0:22:54]} 22. Raa7 {[%emt 0:00:30]} exd4 {[%emt 0:00:30]} 23. exd4 {[%emt 0:00:30]} Bxd4 {[%emt 0:00:30]} 24. b5 {[%emt 0:00:30]} Rc2 {[%emt 0:00:30]} 25. Be3 {[%emt 0:00:30]} Rcc8 {[%emt 0:00:30]} 26. Kf1 {[%emt 0:00:30]} Bb2 {[%emt 0:00:30]} 27. h3 {[%emt 0:02:07]} Kg7 {[%emt 0:00:07]} 28. g4 {[%emt 0:01:10]} h5 {[%emt 0:00:28]} 0-1

[Event "55th Biel Festival MTO 2022"]
[Site "Biel"]
[Date "2022.07.15"]
[Round "1.4"]
[White "Martirosyan Haik M."]
[Black "Schnepp Gunnar"]
[Result "1-0"]
[ECO "E10"]
[WhiteElo "2672"]
[BlackElo "2265"]
[Annotator "ChessBase"]
[PlyCount "29"]
[EventDate "2022.07.13"]
[EventType "swiss"]
[EventCountry "SUI"]
[SourceTitle "playchess.com"]
[Source "ChessBase"]
[SourceQuality "1"]
[TimeControl "40/5400+30:1800+30"]

1. d4 {[%emt 0:00:06]} Nf6 {[%emt 0:00:02]} 2. c4 {[%emt 0:00:20]} e6 {[%emt 0:00:23]} 3. Nf3 {[%emt 0:00:14]} c5 {[%emt 0:00:26]} 4. d5 {[%emt 0:00:34]} b5 {[%emt 0:00:19]} 5. dxe6 {[%emt 0:02:01]} fxe6 {[%emt 0:00:04]} 6. cxb5 {[%emt 0:00:16]} Bb7 {[%emt 0:00:35]} 7. Nc3 {[%emt 0:01:09]} Be7 {[%emt 0:01:04]} 8. Bf4 {[%emt 0:08:45]} O-O {[%emt 0:05:21]} 9. e3 {[%emt 0:00:53]} d5 {[%emt 0:12:18]} 10. Be2 {[%emt 0:02:17]} Nh5 {[%emt 0:12:13]} 11. Bg3 {[%emt 0:02:03]} a6 {[%emt 0:06:56]} 12. bxa6 {[%emt 0:03:00]} Nxa6 {[%emt 0:00:29]} 13. Be5 {[%emt 0:04:16]} Nb4 {[%emt 0:16:31]} 14. O-O {[%emt 0:09:39]} Nc6 {[%emt 0:02:17]} 15. Bg3 {[%emt 0:00:30]} 1-0

[Event "55th Biel Festival MTO 2022"]
[Site "Biel"]
[Date "2022.07.15"]
[Round "1.5"]
[White "Nideroest Bruno"]
[Black "Sargsyan Shant"]
[Result "0-1"]
[ECO "E61"]
[WhiteElo "2258"]
[BlackElo "2661"]
[Annotator "ChessBase"]
[PlyCount "70"]
[EventDate "2022.07.13"]
[EventType "swiss"]
[EventCountry "SUI"]
[SourceTitle "playchess.com"]
[Source "ChessBase"]
[SourceQuality "1"]
[TimeControl "40/5400+30:1800+30"]

1. d4 {[%emt 0:00:02]} Nf6 {[%emt 0:01:49]} 2. c4 {[%emt 0:00:06]} d6 {[%emt 0:00:54]} 3. Nf3 {[%emt 0:00:12]} g6 {[%emt 0:00:24]} 4. Nc3 {[%emt 0:00:06]} Bf5 {[%emt 0:01:04]} 5. Nh4 {[%emt 0:04:30]} Bd7 {[%emt 0:01:22]} 6. e4 {[%emt 0:00:26]} e5 {[%emt 0:02:27]} 7. Nf3 {[%emt 0:05:14]} Nc6 {[%emt 0:01:33]} 8. d5 {[%emt 0:03:26]} Ne7 {[%emt 0:00:41]} 9. c5 {[%emt 0:04:00]} Bg7 {[%emt 0:00:56]} 10. Qb3 {[%emt 0:06:43]} Qb8 {[%emt 0:05:33]} 11. cxd6 {[%emt 0:05:33]} cxd6 {[%emt 0:00:02]} 12. Bb5 {[%emt 0:00:26]} O-O {[%emt 0:01:08]} 13. O-O {[%emt 0:08:20]} Bg4 {[%emt 0:01:58]} 14. Nd2 {[%emt 0:06:54]} Rc8 {[%emt 0:08:56]} 15. f3 {[%emt 0:09:03]} Bd7 {[%emt 0:00:30]} 16. Nc4 {[%emt 0:23:49]} Qc7 {[%emt 0:08:27]} 17. Na3 {[%emt 0:00:30]} a6 {[%emt 0:00:30]} 18. Bxd7 {[%emt 0:00:30]} Nxd7 {[%emt 0:00:30]} 19. Be3 {[%emt 0:00:30]} b5 {[%emt 0:00:30]} 20. Rac1 {[%emt 0:00:30]} Nc5 {[%emt 0:00:30]} 21. Bxc5 {[%emt 0:00:30]} Qxc5+ {[%emt 0:00:30]} 22. Kh1 {[%emt 0:01:23]} Bh6 {[%emt 0:01:10]} 23. Rc2 {[%emt 0:00:41]} Qb6 {[%emt 0:10:37]} 24. Nd1 {[%emt 0:05:20]} Rc5 {[%emt 0:07:08]} 25. Nf2 {[%emt 0:04:06]} Rac8 {[%emt 0:00:17]} 26. Nd3 {[%emt 0:02:55]} Rxc2 {[%emt 0:00:45]} 27. Nxc2 {[%emt 0:00:02]} Qc7 {[%emt 0:01:34]} 28. Rf2 {[%emt 0:01:45]} Kg7 {[%emt 0:00:29]} 29. g3 {[%emt 0:01:12]} f5 {[%emt 0:01:23]} 30. Kg2 {[%emt 0:00:55]} Qd7 {[%emt 0:04:10]} 31. h3 {[%emt 0:00:28]} a5 {[%emt 0:07:17]} 32. Na3 {[%emt 0:03:12]} Rb8 {[%emt 0:00:12]} 33. Rc2 {[%emt 0:00:28]} b4 {[%emt 0:00:19]} 34. Nb1 {[%emt 0:01:50]} a4 {[%emt 0:00:10]} 35. Qc4 {[%emt 0:00:04]} Rc8 {[%emt 0:00:08]} 0-1

[Event "55th Biel Festival MTO 2022"]
[Site "Biel"]
[Date "2022.07.15"]
[Round "1.6"]
[White "Shevchenko Kirill"]
[Black "Dishman Stephen"]
[Result "1-0"]
[ECO "B13"]
[WhiteElo "2654"]
[BlackElo "2252"]
[Annotator "ChessBase"]
[PlyCount "135"]
[EventDate "2022.07.13"]
[EventType "swiss"]
[EventCountry "SUI"]
[SourceTitle "playchess.com"]
[Source "ChessBase"]
[SourceQuality "1"]
[TimeControl "40/5400+30:1800+30"]

1. e4 {[%emt 0:00:03]} c6 {[%emt 0:00:05]} 2. d4 {[%emt 0:01:21]} d5 {[%emt 0:00:07]} 3. exd5 {[%emt 0:00:05]} cxd5 {[%emt 0:00:09]} 4. Bd3 {[%emt 0:00:04]} Nc6 {[%emt 0:00:16]} 5. c3 {[%emt 0:00:04]} Qc7 {[%emt 0:00:20]} 6. h3 {[%emt 0:00:37]} g6 {[%emt 0:00:38]} 7. Ne2 {[%emt 0:03:04]} Bf5 {[%emt 0:01:35]} 8. Bxf5 {[%emt 0:02:18]} gxf5 {[%emt 0:00:10]} 9. Bf4 {[%emt 0:00:02]} Qb6 {[%emt 0:01:36]} 10. O-O {[%emt 0:06:16]} e6 {[%emt 0:07:07]} 11. c4 {[%emt 0:10:39]} dxc4 {[%emt 0:13:03]} 12. Nd2 {[%emt 0:02:36]} Rd8 {[%emt 0:10:05]} 13. Nxc4 {[%emt 0:01:14]} Qa6 {[%emt 0:00:32]} 14. Rc1 {[%emt 0:20:35]} Nf6 {[%emt 0:03:30]} 15. Qb3 {[%emt 0:11:48]} Be7 {[%emt 0:12:37]} 16. Rfe1 {[%emt 0:06:59]} Rg8 {[%emt 0:10:22]} 17. Ne5 {[%emt 0:07:06]} Nb4 {[%emt 0:12:39]} 18. Bh2 {[%emt 0:08:13]} Nbd5 {[%emt 0:03:15]} 19. Nc3 {[%emt 0:00:55]} Kf8 {[%emt 0:03:19]} 20. Nxd5 {[%emt 0:02:46]} Nxd5 {[%emt 0:00:48]} 21. Rc4 {[%emt 0:02:16]} Qb6 {[%emt 0:08:58]} 22. Qc2 {[%emt 0:03:18]} Kg7 {[%emt 0:03:05]} 23. Rd1 {[%emt 0:00:12]} Bd6 {[%emt 0:05:25]} 24. Qe2 {[%emt 0:02:22]} Bxe5 {[%emt 0:00:59]} 25. Bxe5+ {[%emt 0:01:33]} f6 {[%emt 0:00:16]} 26. Bh2 {[%emt 0:00:16]} Kh8 {[%emt 0:00:55]} 27. Re1 {[%emt 0:03:28]} Rde8 {[%emt 0:00:11]} 28. Rc5 {[%emt 0:00:33]} a6 {[%emt 0:01:08]} 29. Kh1 {[%emt 0:01:19]} Qd8 {[%emt 0:00:21]} 30. Qf3 {[%emt 0:00:12]} Qd7 {[%emt 0:00:29]} 31. Bg3 {[%emt 0:02:48]} b6 {[%emt 0:00:22]} 32. Rc2 {[%emt 0:00:06]} Qg7 {[%emt 0:00:57]} 33. Rc6 {[%emt 0:00:35]} f4 {[%emt 0:00:49]} 34. Bh4 {[%emt 0:00:49]} Qd7 {[%emt 0:00:34]} 35. Rc2 {[%emt 0:00:46]} Rg6 {[%emt 0:00:43]} 36. Rce2 {[%emt 0:00:09]} Rh6 {[%emt 0:00:17]} 37. g3 {[%emt 0:00:07]} a5 {[%emt 0:00:38]} 38. Re4 {[%emt 0:00:35]} Qf7 {[%emt 0:00:28]} 39. Qe2 {[%emt 0:00:53]} fxg3 {[%emt 0:00:40]} 40. fxg3 {[%emt 0:00:04]} Nc7 {[%emt 0:00:31]} 41. Qc4 {[%emt 0:13:41]} Qd7 {[%emt 0:07:45]} 42. Rc1 {[%emt 0:05:29]} Qd5 {[%emt 0:04:34]} 43. Qxd5 {[%emt 0:02:44]} Nxd5 {[%emt 0:00:06]} 44. Rc6 {[%emt 0:00:26]} f5 {[%emt 0:00:29]} 45. Re5 {[%emt 0:00:08]} Kg8 {[%emt 0:07:14]} 46. Rd6 {[%emt 0:02:30]} Kf7 {[%emt 0:05:25]} 47. Kg2 {[%emt 0:05:59]} Rc8 {[%emt 0:01:25]} 48. Kf3 {[%emt 0:00:58]} Rc2 {[%emt 0:02:24]} 49. Rexd5 {[%emt 0:00:40]} Rxh4 {[%emt 0:00:07]} 50. gxh4 {[%emt 0:00:05]} exd5 {[%emt 0:00:15]} 51. Rxb6 {[%emt 0:00:01]} Rd2 {[%emt 0:00:40]} 52. Ke3 {[%emt 0:00:32]} Rh2 {[%emt 0:00:10]} 53. Kf4 {[%emt 0:00:25]} Rxh3 {[%emt 0:00:42]} 54. Kxf5 {[%emt 0:01:17]} Rxh4 {[%emt 0:00:05]} 55. Rb7+ {[%emt 0:00:01]} Kg8 {[%emt 0:00:52]} 56. Ke5 {[%emt 0:00:51]} Rh5+ {[%emt 0:00:48]} 57. Ke6 {[%emt 0:01:53]} Rg5 {[%emt 0:01:37]} 58. Rb5 {[%emt 0:00:56]} a4 {[%emt 0:02:06]} 59. Rxd5 {[%emt 0:00:52]} Rxd5 {[%emt 0:01:56]} 60. Kxd5 {[%emt 0:00:02]} h5 {[%emt 0:00:37]} 61. b4 {[%emt 0:00:50]} axb3 {[%emt 0:00:27]} 62. axb3 {[%emt 0:00:01]} Kf7 {[%emt 0:00:15]} 63. b4 {[%emt 0:01:19]} Ke7 {[%emt 0:00:11]} 64. Ke5 {[%emt 0:00:38]} Kd7 {[%emt 0:01:12]} 65. b5 {[%emt 0:00:08]} Kc7 {[%emt 0:00:44]} 66. d5 {[%emt 0:00:05]} Kb6 {[%emt 0:00:45]} 67. d6 {[%emt 0:00:05]} Kb7 {[%emt 0:00:12]} 68. Ke6 {[%emt 0:00:33]} 1-0

[Event "55th Biel Festival MTO 2022"]
[Site "Biel"]
[Date "2022.07.15"]
[Round "1.7"]
[White "Dauth Benjamin"]
[Black "Motylev Alexander"]
[Result "0-1"]
[ECO "B92"]
[WhiteElo "2243"]
[BlackElo "2632"]
[Annotator "ChessBase"]
[PlyCount "84"]
[EventDate "2022.07.13"]
[EventType "swiss"]
[EventCountry "SUI"]
[SourceTitle "playchess.com"]
[Source "ChessBase"]
[SourceQuality "1"]
[TimeControl "40/5400+30:1800+30"]

1. e4 {[%emt 0:00:08]} c5 {[%emt 0:00:32]} 2. Nf3 {[%emt 0:00:51]} d6 {[%emt 0:00:10]} 3. d4 {[%emt 0:00:08]} cxd4 {[%emt 0:00:06]} 4. Nxd4 {[%emt 0:00:04]} Nf6 {[%emt 0:00:06]} 5. Nc3 {[%emt 0:00:30]} a6 {[%emt 0:00:07]} 6. Be2 {[%emt 0:00:46]} e5 {[%emt 0:00:29]} 7. Nb3 {[%emt 0:00:25]} Be7 {[%emt 0:00:16]} 8. O-O {[%emt 0:00:11]} O-O {[%emt 0:00:06]} 9. Be3 {[%emt 0:00:32]} Be6 {[%emt 0:01:24]} 10. Nd5 {[%emt 0:01:24]} Bxd5 {[%emt 0:01:37]} 11. exd5 {[%emt 0:00:09]} Nbd7 {[%emt 0:00:06]} 12. c4 {[%emt 0:00:24]} a5 {[%emt 0:02:02]} 13. Nd2 {[%emt 0:01:05]} Nc5 {[%emt 0:00:25]} 14. a3 {[%emt 0:00:18]} a4 {[%emt 0:00:50]} 15. Bxc5 {[%emt 0:01:24]} dxc5 {[%emt 0:00:02]} 16. Nb1 {[%emt 0:00:11]} Ne4 {[%emt 0:06:55]} 17. Nc3 {[%emt 0:03:05]} Nxc3 {[%emt 0:00:45]} 18. bxc3 {[%emt 0:00:05]} Bd6 {[%emt 0:01:10]} 19. Rb1 {[%emt 0:01:18]} b6 {[%emt 0:00:39]} 20. Rb2 {[%emt 0:01:25]} f5 {[%emt 0:00:27]} 21. f3 {[%emt 0:00:37]} Rf6 {[%emt 0:03:51]} 22. Qc2 {[%emt 0:00:38]} Bc7 {[%emt 0:01:00]} 23. g3 {[%emt 0:01:55]} Qd7 {[%emt 0:01:04]} 24. Bd3 {[%emt 0:01:40]} Raf8 {[%emt 0:04:54]} 25. Qb1 {[%emt 0:00:37]} h5 {[%emt 0:07:29]} 26. Rg2 {[%emt 0:08:45]} Qf7 {[%emt 0:24:50]} 27. Bc2 {[%emt 0:00:58]} e4 {[%emt 0:00:30]} 28. f4 {[%emt 0:01:43]} h4 {[%emt 0:00:25]} 29. Bxa4 {[%emt 0:02:55]} Rh6 {[%emt 0:10:26]} 30. Bd1 {[%emt 0:02:55]} Qf6 {[%emt 0:02:36]} 31. Qc1 {[%emt 0:00:18]} hxg3 {[%emt 0:01:47]} 32. hxg3 {[%emt 0:00:58]} Kf7 {[%emt 0:00:09]} 33. Qe3 {[%emt 0:08:23]} Rfh8 {[%emt 0:02:33]} 34. a4 {[%emt 0:00:22]} Rh3 {[%emt 0:01:01]} 35. Kf2 {[%emt 0:00:44]} Qd6 {[%emt 0:03:56]} 36. Ke1 {[%emt 0:02:19]} Bd8 {[%emt 0:01:12]} 37. Kd2 {[%emt 0:00:48]} Bf6 {[%emt 0:00:42]} 38. Rgg1 {[%emt 0:02:41]} Qd8 {[%emt 0:09:19]} 39. Kc2 {[%emt 0:07:30]} Qa8 {[%emt 0:00:31]} 40. Kb3 {[%emt 0:02:09]} Qa5 {[%emt 0:02:22]} 41. Bc2 {[%emt 0:31:04]} Rh2 {[%emt 0:31:20]} 42. Ra1 {[%emt 0:01:31]} Re2 {[%emt 0:00:53]} 0-1

[Event "55th Biel Festival MTO 2022"]
[Site "Biel"]
[Date "2022.07.15"]
[Round "1.8"]
[White "Lagarde Maxime"]
[Black "Ermitsch Magnus"]
[Result "1-0"]
[ECO "D41"]
[WhiteElo "2631"]
[BlackElo "2234"]
[Annotator "ChessBase"]
[PlyCount "59"]
[EventDate "2022.07.13"]
[EventType "swiss"]
[EventCountry "SUI"]
[SourceTitle "playchess.com"]
[Source "ChessBase"]
[SourceQuality "1"]
[TimeControl "40/5400+30:1800+30"]

1. d4 {[%emt 0:00:04]} Nf6 {[%emt 0:00:54]} 2. c4 {[%emt 0:00:06]} e6 {[%emt 0:00:14]} 3. Nf3 {[%emt 0:00:13]} d5 {[%emt 0:00:34]} 4. Nc3 {[%emt 0:00:29]} c5 {[%emt 0:00:25]} 5. cxd5 {[%emt 0:01:01]} Nxd5 {[%emt 0:00:09]} 6. e4 {[%emt 0:00:32]} Nxc3 {[%emt 0:00:09]} 7. bxc3 {[%emt 0:00:02]} cxd4 {[%emt 0:00:14]} 8. cxd4 {[%emt 0:00:03]} Bb4+ {[%emt 0:00:07]} 9. Bd2 {[%emt 0:00:04]} Bxd2+ {[%emt 0:00:06]} 10. Qxd2 {[%emt 0:00:03]} O-O {[%emt 0:00:10]} 11. Rd1 {[%emt 0:00:12]} Bd7 {[%emt 0:00:24]} 12. h4 {[%emt 0:01:03]} Bc6 {[%emt 0:16:05]} 13. Bd3 {[%emt 0:01:19]} Ba4 {[%emt 0:01:49]} 14. Rb1 {[%emt 0:08:55]} Nc6 {[%emt 0:01:20]} 15. Be2 {[%emt 0:24:51]} Qd6 {[%emt 0:32:35]} 16. h5 {[%emt 0:15:09]} h6 {[%emt 0:04:43]} 17. Rh4 {[%emt 0:03:09]} Rad8 {[%emt 0:09:27]} 18. d5 {[%emt 0:06:33]} Ne5 {[%emt 0:05:38]} 19. Nxe5 {[%emt 0:12:12]} Qxe5 {[%emt 0:00:12]} 20. Qb2 {[%emt 0:00:35]} Qxb2 {[%emt 0:10:02]} 21. Rxb2 {[%emt 0:00:03]} Rfe8 {[%emt 0:03:28]} 22. e5 {[%emt 0:04:41]} Bd7 {[%emt 0:03:07]} 23. d6 {[%emt 0:00:46]} Bc6 {[%emt 0:00:30]} 24. Bb5 {[%emt 0:05:09]} Bxb5 {[%emt 0:05:04]} 25. Rxb5 {[%emt 0:00:05]} b6 {[%emt 0:02:07]} 26. Rc4 {[%emt 0:00:05]} f6 {[%emt 0:01:02]} 27. f4 {[%emt 0:00:04]} Rd7 {[%emt 0:01:01]} 28. a4 {[%emt 0:02:05]} g6 {[%emt 0:01:42]} 29. a5 {[%emt 0:00:43]} Rb8 {[%emt 0:00:56]} 30. hxg6 {[%emt 0:07:03]} 1-0

[Event "55th Biel Festival MTO 2022"]
[Site "Biel"]
[Date "2022.07.15"]
[Round "1.9"]
[White "Mamedov Edgar"]
[Black "Sethuraman S.P."]
[Result "0-1"]
[ECO "A21"]
[WhiteElo "2227"]
[BlackElo "2623"]
[Annotator "ChessBase"]
[PlyCount "82"]
[EventDate "2022.07.13"]
[EventType "swiss"]
[EventCountry "SUI"]
[SourceTitle "playchess.com"]
[Source "ChessBase"]
[SourceQuality "1"]
[TimeControl "40/5400+30:1800+30"]

1. d4 {[%emt 0:00:07]} d6 {[%emt 0:01:40]} 2. c4 {[%emt 0:00:48]} e5 {[%emt 0:00:18]} 3. Nf3 {[%emt 0:00:29]} e4 {[%emt 0:00:08]} 4. Ng5 {[%emt 0:00:56]} f5 {[%emt 0:00:46]} 5. Nc3 {[%emt 0:01:03]} c6 {[%emt 0:02:03]} 6. Nh3 {[%emt 0:05:51]} Nf6 {[%emt 0:00:42]} 7. e3 {[%emt 0:05:34]} Be7 {[%emt 0:12:57]} 8. Be2 {[%emt 0:01:02]} O-O {[%emt 0:00:56]} 9. O-O {[%emt 0:00:23]} Na6 {[%emt 0:00:37]} 10. Bd2 {[%emt 0:03:16]} Kh8 {[%emt 0:03:41]} 11. Qb3 {[%emt 0:04:13]} Nc7 {[%emt 0:00:26]} 12. f3 {[%emt 0:02:24]} d5 {[%emt 0:06:32]} 13. cxd5 {[%emt 0:03:24]} Ncxd5 {[%emt 0:00:27]} 14. Nxd5 {[%emt 0:03:05]} cxd5 {[%emt 0:00:06]} 15. f4 {[%emt 0:19:55]} a5 {[%emt 0:04:01]} 16. a4 {[%emt 0:00:30]} h6 {[%emt 0:00:10]} 17. Rac1 {[%emt 0:01:51]} Rg8 {[%emt 0:01:49]} 18. Qc2 {[%emt 0:14:19]} Bd6 {[%emt 0:01:25]} 19. b4 {[%emt 0:08:22]} axb4 {[%emt 0:00:52]} 20. Rb1 {[%emt 0:00:51]} Bd7 {[%emt 0:00:51]} 21. Bxb4 {[%emt 0:00:45]} Bxa4 {[%emt 0:00:11]} 22. Qb2 {[%emt 0:01:39]} Bc6 {[%emt 0:01:11]} 23. Bxd6 {[%emt 0:01:35]} Qxd6 {[%emt 0:00:07]} 24. Ra1 {[%emt 0:00:24]} Rgc8 {[%emt 0:01:23]} 25. Rfc1 {[%emt 0:04:34]} Qf8 {[%emt 0:02:40]} 26. Nf2 {[%emt 0:03:15]} Rxa1 {[%emt 0:00:55]} 27. Rxa1 {[%emt 0:00:06]} Ra8 {[%emt 0:00:09]} 28. Rxa8 {[%emt 0:02:25]} Qxa8 {[%emt 0:00:08]} 29. Nd1 {[%emt 0:00:05]} Qa5 {[%emt 0:00:28]} 30. Qc3 {[%emt 0:00:51]} Qa4 {[%emt 0:01:47]} 31. h3 {[%emt 0:01:18]} Kh7 {[%emt 0:00:18]} 32. Kh2 {[%emt 0:03:14]} Bb5 {[%emt 0:02:56]} 33. Bxb5 {[%emt 0:05:18]} Qxb5 {[%emt 0:00:10]} 34. Qc8 {[%emt 0:00:17]} Kg6 {[%emt 0:00:07]} 35. Qc2 {[%emt 0:02:52]} Qc4 {[%emt 0:00:52]} 36. Qf2 {[%emt 0:00:44]} b5 {[%emt 0:00:16]} 37. Nb2 {[%emt 0:00:30]} Qc1 {[%emt 0:01:56]} 38. Qe2 {[%emt 0:00:11]} b4 {[%emt 0:00:09]} 39. g4 {[%emt 0:00:17]} fxg4 {[%emt 0:00:34]} 40. hxg4 {[%emt 0:00:07]} Qxe3 {[%emt 0:00:35]} 41. f5+ {[%emt 0:30:34]} Kf7 {[%emt 0:30:08]} 0-1